fUSD/lending_fUSD_20260112
["ID","MTS","AMOUNT","RATE_DAILY","PERIOD"]
[401437691,1768216249716,-151.0,0.00018,2]
[401437692,1768216249726,-151.0,0.00018,2]
[401437693,1768216249736,-585.678073,0.00018,2]
[401437694,1768216249745,-4821.0,0.00018,2]
[401437695,1768216249755,-151.0,0.00018,2]
[401437696,1768216249765,-151.0,0.00018,2]
[401437697,1768216249775,-585.678073,0.00018,2]
[401437698,1768216249784,-151.0,0.00018,2]
[401437699,1768216249799,-151.0,0.00018,2]
[401437700,1768216249809,-585.678073,0.00018,2]
[401437701,1768216249819,-413.911364,0.00018,2]
[401437702,1768216249830,-151.0,0.00018,2]
[401437703,1768216249840,-1332.77732681,0.00018,2]
[401437704,1768216249850,-585.678073,0.00018,2]
[401437705,1768216249860,-413.911364,0.00018,2]
[401437706,1768216249870,-151.0,0.00018,2]
[401437707,1768216249880,-158.2720892,0.00018,2]
[401437708,1768216249890,-413.911364,0.00018,2]
[401437709,1768216249901,-151.0,0.00018,2]
[401437710,1768216249911,-291.883143,0.00018,2]
[401437711,1768216249921,-413.911364,0.00018,2]
[401437712,1768216249931,-151.0,0.00018,2]
[401437713,1768216249940,-152.0,0.00018,2]
[401437714,1768216249950,-190.724249,0.00018,2]
[401437715,1768216249960,-291.883143,0.00018,2]
[401437716,1768216249970,-2437.0,0.00018,2]
[401437717,1768216249980,-152.0,0.00018,2]
[401437718,1768216249990,-190.724249,0.00018,2]
[401437719,1768216250000,-152.0,0.00018,2]
[401437720,1768216250010,-291.883143,0.00018,2]
[401437721,1768216250020,-190.724249,0.00018,2]
[401437722,1768216250034,-151.0,0.00018,2]
[401437723,1768216250044,-291.883143,0.00018,2]
[401437724,1768216250053,-151.0,0.00018,2]
[401437725,1768216250063,-190.724249,0.00018,2]
[401437726,1768216250073,-2239.607864,0.00018,2]
[401437727,1768216250083,-151.0,0.00018,2]
[401437728,1768216250093,-151.0,0.00018,2]
[401437729,1768216250102,-2239.607864,0.00018,2]
[401437730,1768216250112,-151.0,0.00018,2]
[401437731,1768216250122,-151.0,0.00018,2]
[401437732,1768216250132,-2239.607864,0.00018,2]
[401437733,1768216250142,-151.0,0.00018,2]
[401437734,1768216250152,-2239.607864,0.00018,2]
[401437735,1768216250162,-566.0,0.00018,2]
[401437736,1768216250172,-239.577246,0.00018,2]
[401437737,1768216250182,-151.0,0.00018,2]
[401437738,1768216250191,-455.0,0.00018009,2]
[401437739,1768216250201,-455.0,0.00018011,2]
[401437740,1768216250211,-1263.1,0.0001803,2]
[401437741,1768216250221,-455.0,0.00018059,2]
[401437742,1768216250230,-2050.0,0.00018092,2]
[401437743,1768216250243,-2050.0,0.00018092,2]
[401437744,1768216250253,-1154.0,0.000181,4]
[401437745,1768216250263,-981.0,0.000181,2]
[401437746,1768216250273,-307.0,0.000181,2]
[401437747,1768216250284,-426.0,0.000181,2]
[401437748,1768216250294,-301.0,0.000181,2]
[401437749,1768216250304,-2106.0,0.00018168,2]
[401437750,1768216250315,-1500.0,0.00018168,2]
[401437751,1768216250325,-246.48133113,0.00018168,2]
[401437752,1768216250335,-1500.0,0.00018168,2]
[401437753,1768216250345,-1500.0,0.00018168,2]
[401437754,1768216250355,-200.0,0.0001818,2]
[401437755,1768216250365,-200.0,0.0001818,2]
[401437756,1768216250375,-1000.0,0.000182,2]
[401437757,1768216250385,-455.0,0.00018201,2]
[401437758,1768216250400,-455.0,0.00018221,2]
[401437759,1768216250410,-455.0,0.0001823,2]
[401437760,1768216250419,-1700.0,0.00018282,7]
[401437761,1768216250429,-2093.0,0.00018296,2]
[401437762,1768216250439,-1000.0,0.00018306,2]
[401437763,1768216250448,-227.0,0.00018346,2]
[401437764,1768216250458,-200.0,0.00018362,2]
[401437765,1768216250468,-200.0,0.00018362,2]
[401437766,1768216250478,-2093.0,0.000184,2]
[401437767,1768216250488,-1101.0,0.000184,2]
[401437768,1768216250498,-227.0,0.00018415,2]
[401437769,1768216250507,-166.66,0.00018487,2]
[401437770,1768216250517,-467.15,0.00018497,2]
[401437771,1768216250527,-467.15,0.00018497,2]
[401437772,1768216250537,-467.15,0.00018497,2]
[401437773,1768216250546,-467.15,0.00018497,2]
[401437774,1768216250556,-5000.0,0.000185,2]
[401437775,1768216250566,-1000.0,0.00018521,2]
[401437776,1768216250577,-1000.0,0.00018521,2]
[401437777,1768216250587,-1000.0,0.00018521,2]
[401437778,1768216250596,-200.0,0.00018545,2]
[401437779,1768216250606,-200.0,0.00018545,2]
[401437780,1768216250615,-500.0,0.00018556,7]
[401437781,1768216250625,-700.0,0.00018556,7]
[401437782,1768216250635,-227.0,0.00018561,2]
[401437783,1768216250644,-379.49,0.00018591,2]
[401437784,1768216250654,-1613.0,0.00018673,2]
[401437785,1768216250664,-2106.0,0.00018692,2]
[401437786,1768216250674,-2106.0,0.00018698,2]
[401437787,1768216250684,-2093.0,0.000187,2]
[401437788,1768216250694,-2000.0,0.00018716,2]
[401437789,1768216250704,-2000.0,0.00018716,2]
[401437790,1768216250714,-1838.0391986,0.00018716,2]
[401437791,1768216250724,-200.0,0.00018731,2]
[401437792,1768216250734,-200.0,0.00018731,2]
[401437793,1768216250744,-4609.0,0.0001877,2]
[401437794,1768216250758,-1300.39,0.000188,3]
[401437795,1768216250768,-151.27,0.000188,2]
[401437796,1768216250779,-151.27,0.000188,2]
[401437797,1768216250789,-151.27,0.000188,2]
[401437798,1768216250798,-151.27,0.000188,2]
[401437799,1768216250808,-1000.0,0.0001894,2]
[401437800,1768216250818,-2106.0,0.00018978,2]
[401437801,1768216250828,-300.0,0.00018999,2]
[401437802,1768216250838,-300.0,0.00018999,2]
[401437803,1768216250849,-10000.0,0.00019,2]
[401437804,1768216250859,-300.0,0.00019,2]
[401437805,1768216250869,-20385.61977671,0.00019,2]
[401437806,1768216250878,-330.67238323,0.00019,2]
[401437807,1768216250889,-1089.13128237,0.00019,2]
[401437808,1768216250899,-166.66,0.00019042,2]
[401437809,1768216250909,-460.56188519,0.00019068,2]
[401437810,1768216250921,-376.29846658,0.00019068,2]
[401437811,1768216250931,-1443.69058411,0.00019068,2]
[401437812,1768216250940,-2106.0,0.00019076,2]
[401437813,1768216250953,-200.0,0.00019082,2]
[401437814,1768216250963,-227.0,0.00019121,2]
[401437815,1768216250974,-251.94245815,0.00019176,2]
[401437816,1768216250983,-1103.30087611,0.00019178,2]
[401437817,1768216250993,-151.0,0.00019178,2]
[401437818,1768216251003,-151.0,0.00019178,2]
[401437819,1768216251013,-151.0,0.00019178,2]
[401437820,1768216251023,-150.41067892,0.00019178,2]
[401437821,1768216251033,-1103.30087611,0.0001926,2]
[401437822,1768216251042,-2500.0,0.00019264,2]
[401437823,1768216251052,-1503.67715138,0.00019264,2]
[401437824,1768216251062,-1101.0,0.0001932,2]
[401437825,1768216251072,-1103.30087611,0.00019342,2]
[401437826,1768216251081,-500.0,0.00019342,2]
[401437827,1768216251091,-1700.0,0.00019378,7]
[401437828,1768216251101,-1103.30087611,0.00019425,2]
[401437829,1768216251111,-5000.0,0.00019463,2]
[401437830,1768216251121,-1103.30087611,0.00019479,2]
[401437831,1768216251131,-5000.0,0.000195,2]
[401437832,1768216251142,-6171.37558444,0.00019508,2]
[401437833,1768216251153,-1103.30087611,0.00019562,2]
[401437834,1768216251162,-166.66,0.00019597,2]
[401437835,1768216251172,-1103.30087611,0.00019644,2]
[401437836,1768216251182,-700.0,0.00019652,7]
[401437837,1768216251192,-1263.1,0.00019669,2]
[401437838,1768216251201,-1000.0,0.00019681,2]
[401437839,1768216251211,-1103.30087611,0.00019726,2]
[401437840,1768216251221,-158.73335703,0.00019731,2]
[401437841,1768216251230,-1103.30087611,0.00019808,2]
[401437842,1768216251244,-3000.0,0.00019812,2]
[401437843,1768216251254,-998.0,0.00019838,2]
[401437844,1768216251264,-666.0,0.00019842,2]
[401437845,1768216251274,-300.0,0.00019842,2]
[401437846,1768216251287,-118167.4461511,0.00019843,2]
[401437847,1768216251296,-7711.6106384,0.00019843,2]
[401437848,1768216251306,-1103.30087611,0.00019863,2]
[401437849,1768216251317,-171.53,0.00019863,2]
[401437850,1768216251327,-171.53,0.00019863,2]
[401437851,1768216251337,-1000.0,0.00019881,2]
[401437852,1768216251347,-1248.13072792,0.000199,2]
[401437853,1768216251357,-1248.13072774,0.000199,2]
[401437854,1768216251366,-1248.13072774,0.000199,2]
[401437855,1768216251376,-1248.13072774,0.000199,2]
[401437856,1768216251386,-1248.13072774,0.000199,2]
[401437857,1768216251396,-1248.13072774,0.000199,2]
[401437858,1768216251407,-1248.13072774,0.000199,2]
[401437859,1768216251417,-1248.13072774,0.000199,2]
[401437860,1768216251427,-1248.13072774,0.000199,2]
[401437861,1768216251437,-1248.13072774,0.000199,2]
[401437862,1768216251447,-1248.13072774,0.000199,2]
[401437863,1768216251456,-1248.13072774,0.000199,2]
[401437864,1768216251466,-1248.13072774,0.000199,2]
[401437865,1768216251475,-1248.13072774,0.000199,2]
[401437866,1768216251485,-1248.13072774,0.000199,2]
[401437867,1768216251494,-1248.13072774,0.000199,2]
[401437868,1768216251504,-1248.13072774,0.000199,2]
[401437869,1768216251514,-1248.13072774,0.000199,2]
[401437870,1768216251523,-1248.13072774,0.000199,2]
[401437871,1768216251541,-1248.13072774,0.000199,2]
[401437872,1768216251553,-1103.30087611,0.00019945,2]
[401437873,1768216251563,-300.0,0.00019999,2]
[401437874,1768216251572,-8300.0,0.0002,4]
[401437875,1768216251582,-160.39778183,0.0002,10]
[401437876,1768216251592,-25175.95191083,0.0002,20]
[401437877,1768216251602,-2000.00517446,0.0002,2]
[401437878,1768216251612,-500.0,0.0002,2]
[401437879,1768216251621,-228.0,0.0002,13]
[401437880,1768216251631,-1000.0,0.0002,8]
[401437881,1768216251641,-10000.0,0.0002,2]
[401437882,1768216251651,-163.43,0.0002,2]
[401437883,1768216251661,-1465.10294635,0.0002,5]
[401437884,1768216251671,-37395.10011446,0.0002,4]
[401437885,1768216251681,-7492.43518472,0.0002,2]
[401437886,1768216251691,-500.0,0.0002,2]
[401437887,1768216251701,-187.88,0.0002,2]
[401437888,1768216251711,-150.0,0.0002,20]
[401437889,1768216251722,-200.899058,0.0002,2]
[401437890,1768216251733,-157.50206367,0.0002,7]
[401437891,1768216251743,-500.0,0.00020001,2]
[401437892,1768216251753,-500.0,0.00020002,2]
[401437893,1768216251764,-499.9999,0.00020003,2]
[401437894,1768216251774,-8720.0,0.0002001,2]
[401437895,1768216251784,-1103.30087611,0.00020027,2]
[401437896,1768216251794,-152.0,0.00020068,5]
[401437897,1768216251804,-2000.0,0.00020099,2]
[401437898,1768216251814,-2000.0,0.00020099,2]
[401437899,1768216251825,-1149.6177,0.00020099,2]
[401437900,1768216251835,-2000.0,0.00020099,2]
[401437901,1768216251845,-2000.0,0.00020099,2]
[401437902,1768216251855,-2000.0,0.00020099,2]
[401437903,1768216251865,-556.45575245,0.0002017,2]
[401437904,1768216251875,-400.0,0.0002017,2]
[401437905,1768216251885,-400.0,0.0002017,2]
[401437906,1768216251895,-400.0,0.0002017,2]
[401437907,1768216251906,-1101.0,0.00020286,2]
[401437908,1768216251916,-267.05,0.000203,18]
[401437909,1768216251926,-3500.0,0.0002036,2]
[401437910,1768216251936,-1925.92986299,0.0002041,30]
[401437911,1768216251946,-1700.0,0.00020474,7]
[401437912,1768216251955,-5000.0,0.000205,2]
[401437913,1768216251964,-1589.0,0.00020505,2]
[401437914,1768216251975,-192.94,0.00020548,2]
[401437915,1768216251985,-1054.0,0.00020548,30]
[401437916,1768216251995,-6453.0,0.00020647,2]
[401437917,1768216252005,-700.0,0.00020748,7]
[401437918,1768216252014,-500.0,0.00020748,7]
[401437919,1768216252024,-2241.11101316,0.00020908,2]
[401437920,1768216252034,-217.38980824,0.00021,7]
[401437921,1768216252043,-5541.78106828,0.00021,2]
[401437922,1768216252053,-350.0,0.00021,2]
[401437923,1768216252063,-150.0,0.00021,2]
[401437924,1768216252072,-150.0,0.00021,2]
[401437925,1768216252081,-150.0,0.00021,2]
[401437926,1768216252091,-150.0,0.00021,2]
[401437927,1768216252100,-150.0,0.00021,2]
[401437928,1768216252110,-150.0,0.00021,2]
[401437929,1768216252119,-150.0,0.00021,2]
[401437930,1768216252128,-150.0,0.00021,2]
[401437931,1768216252138,-150.0,0.00021,2]
[401437932,1768216252149,-3469.0,0.00021,2]
[401437933,1768216252158,-1330.0,0.00021,2]
[401437934,1768216252168,-1405.0,0.00021,2]
[401437935,1768216252177,-1267.0,0.00021,2]
[401437936,1768216252187,-505.0,0.00021,2]
[401437937,1768216252196,-914.0,0.00021,2]
[401437938,1768216252206,-1201.0,0.00021,2]
[401437939,1768216252215,-4821.0,0.00021,2]
[401437940,1768216252226,-2437.0,0.00021,2]
[401437941,1768216252237,-1000.0,0.00021044,2]
[401437942,1768216252248,-2000.0,0.000212,2]
[401437943,1768216252258,-1101.0,0.00021301,2]
[401437944,1768216252268,-362.09472419,0.00021424,2]
[401437945,1768216252278,-663.32,0.00021499,2]
[401437946,1768216252288,-661.95,0.00021499,2]
[401437947,1768216252298,-661.95,0.00021499,2]
[401437948,1768216252308,-661.95,0.00021499,2]
[401437949,1768216252318,-5000.0,0.000215,2]
[401437950,1768216252329,-1700.0,0.0002157,7]
[401437951,1768216252339,-118167.4461511,0.00021692,2]
[401437952,1768216252349,-7711.6106384,0.00021692,2]
[401437953,1768216252359,-300.0,0.0002184,2]
[401437954,1768216252368,-300.0,0.0002184,2]
[401437955,1768216252378,-700.0,0.00021844,7]
[401437956,1768216252388,-222.97211581,0.00021879,2]
[401437957,1768216252397,-5000.0,0.00021918,2]
[401437958,1768216252407,-800.0,0.00021918,2]
[401437959,1768216252416,-800.0,0.00021918,2]
[401437960,1768216252426,-800.0,0.00021918,2]
[401437961,1768216252436,-800.0,0.00021918,2]
[401437962,1768216252445,-800.0,0.00021918,2]
[401437963,1768216252455,-800.0,0.00021918,2]
[401437964,1768216252464,-800.0,0.00021918,2]
[401437965,1768216252474,-800.0,0.00021918,2]
[401437966,1768216252484,-800.0,0.00021918,2]
[401437967,1768216252494,-800.0,0.00021918,2]
[401437968,1768216252503,-800.0,0.00021918,2]
[401437969,1768216252512,-800.0,0.00021918,2]
[401437970,1768216252522,-800.0,0.00021918,2]
[401437971,1768216252532,-800.0,0.00021918,2]
[401437972,1768216252541,-800.0,0.00021918,2]
[401437973,1768216252551,-800.0,0.00021918,2]
[401437974,1768216252560,-1000.0,0.00021918,2]
[401437975,1768216252570,-500.0,0.00021918,2]
[401437976,1768216252579,-500.0,0.00021918,2]
[401437977,1768216252589,-500.0,0.00021918,2]
[401437978,1768216252598,-500.0,0.00021918,2]
[401437979,1768216252607,-500.0,0.00021918,2]
[401437980,1768216252617,-500.0,0.00021918,2]
[401437981,1768216252626,-500.0,0.00021918,2]
[401437982,1768216252636,-528.84790508,0.00021918,2]
[401437983,1768216252646,-500.0,0.00021918,2]
[401437984,1768216252655,-1042.8812425,0.00021923,2]
[401437985,1768216252665,-150.60420467,0.00021973,2]
[401437986,1768216252675,-1000.0,0.00021978,2]
[401437987,1768216252685,-1000.0,0.00021986,2]
[401437988,1768216252695,-309.21289699,0.00021999,2]
[401437989,1768216252705,-300.0,0.00021999,2]
[401437990,1768216252717,-359.08313245,0.00021999,2]
[401437991,1768216252726,-633.0,0.00022,2]
[401437992,1768216252736,-956.14647541,0.00022,15]
[401437993,1768216252747,-1000.0,0.00022,8]
[401437994,1768216252757,-10000.0,0.00022,2]
[401437995,1768216252767,-63798.08,0.00022,2]
[401437996,1768216252777,-114708.01353197,0.00022,4]
[401437997,1768216252788,-4163.75,0.00022,7]
[401437998,1768216252799,-1000.0,0.00022037,2]
[401437999,1768216252809,-1000.0,0.00022054,2]
[401438000,1768216252819,-150.0,0.00022093,2]
[401438001,1768216252829,-400.0,0.000221,2]
[401438002,1768216252840,-400.0,0.000221,2]
[401438003,1768216252850,-400.0,0.000221,2]
[401438004,1768216252861,-489.77537957,0.000221,2]
[401438005,1768216252871,-1000.0,0.00022109,2]
[401438006,1768216252881,-1000.0,0.00022112,2]
[401438007,1768216252892,-1000.0,0.00022118,2]
[401438008,1768216252904,-150.0,0.00022145,2]
[401438009,1768216252914,-47598.0,0.00022158,2]
[401438010,1768216252925,-1000.0,0.00022186,2]
[401438011,1768216252935,-1000.0,0.00022192,2]
[401438012,1768216252945,-1000.0,0.00022195,2]
[401438013,1768216252954,-1000.0,0.00022205,2]
[401438014,1768216252964,-168.18552807,0.00022211,2]
[401438015,1768216252973,-1000.0,0.00022216,2]
[401438016,1768216252983,-1000.0,0.00022245,2]
[401438017,1768216252994,-1000.0,0.00022259,2]
[401438018,1768216253004,-1000.0,0.00022273,2]
[401438019,1768216253014,-1000.0,0.00022296,2]
[401438020,1768216253024,-200.0,0.000223,2]
[401438021,1768216253034,-1000.0,0.00022324,2]
[401438022,1768216253045,-1000.0,0.00022358,2]
[401438023,1768216253055,-1101.0,0.00022366,2]
[401438024,1768216253066,-300.0,0.00022396,2]
[401438025,1768216253075,-500.0,0.00022397,2]
[401438026,1768216253085,-500.0,0.00022397,2]
[401438027,1768216253094,-510.83190235,0.00022397,2]
[401438028,1768216253104,-500.0,0.00022397,2]
[401438029,1768216253114,-500.0,0.00022397,2]
[401438030,1768216253123,-500.0,0.00022397,2]
[401438031,1768216253133,-500.0,0.00022397,2]
[401438032,1768216253142,-500.0,0.00022397,2]
[401438033,1768216253153,-500.0,0.00022397,2]
[401438034,1768216253162,-532.74251355,0.00022397,2]
[401438035,1768216253172,-500.0,0.00022397,2]
[401438036,1768216253182,-500.0,0.00022397,2]
[401438037,1768216253192,-500.0,0.00022397,2]
[401438038,1768216253202,-500.0,0.00022397,2]
[401438039,1768216253216,-500.0,0.00022397,2]
[401438040,1768216253226,-500.0,0.00022397,2]
[401438041,1768216253239,-500.0,0.00022397,2]
[401438042,1768216253251,-500.0,0.00022397,2]
[401438043,1768216253261,-499.4701768,0.00022397,2]
[401438044,1768216253271,-1300.0,0.00022397,2]
[401438045,1768216253283,-500.0,0.00022397,2]
[401438046,1768216253294,-500.0,0.00022397,2]
[401438047,1768216253305,-1300.0,0.00022397,2]
[401438048,1768216253690,-500.0,0.00022397,2]
[401438049,1768216253701,-500.0,0.00022397,2]
[401438050,1768216253712,-1300.0,0.00022397,2]
[401438051,1768216253723,-500.0,0.00022397,2]
[401438052,1768216253733,-500.0,0.00022397,2]
[401438053,1768216253744,-1300.0,0.00022397,2]
[401438054,1768216253754,-500.0,0.00022397,2]
[401438055,1768216253765,-500.0,0.00022397,2]
[401438056,1768216253775,-500.0,0.00022397,2]
[401438057,1768216253785,-1300.0,0.00022397,2]
[401438058,1768216253795,-500.0,0.00022397,2]
[401438059,1768216253805,-500.0,0.00022397,2]
[401438060,1768216253815,-1300.0,0.00022397,2]
[401438061,1768216253828,-500.0,0.00022397,2]
[401438062,1768216253837,-500.0,0.00022397,2]
[401438063,1768216253847,-500.0,0.00022397,2]
[401438064,1768216253856,-1300.0,0.00022397,2]
[401438065,1768216253865,-500.0,0.00022397,2]
[401438066,1768216253875,-500.0,0.00022397,2]
[401438067,1768216253884,-500.0,0.00022397,2]
[401438068,1768216253894,-1300.0,0.00022397,2]
[401438069,1768216253904,-500.0,0.00022397,2]
[401438070,1768216253915,-500.0,0.00022397,2]
[401438071,1768216253924,-500.0,0.00022397,2]
[401438072,1768216253935,-1300.0,0.00022397,2]
[401438073,1768216253945,-500.0,0.00022397,2]
[401438074,1768216253955,-500.0,0.00022397,2]
[401438075,1768216253964,-500.0,0.00022397,2]
[401438076,1768216253973,-500.0,0.00022397,2]
[401438077,1768216253983,-500.0,0.00022397,2]
[401438078,1768216253993,-1300.0,0.00022397,2]
[401438079,1768216254002,-500.0,0.00022397,2]
[401438080,1768216254011,-500.0,0.00022397,2]
[401438081,1768216254024,-500.0,0.00022397,2]
[401438082,1768216254033,-513.36620179,0.00022397,2]
[401438083,1768216254042,-1300.0,0.00022397,2]
[401438084,1768216254052,-500.0,0.00022397,2]
[401438085,1768216254061,-500.0,0.00022397,2]
[401438086,1768216254070,-500.0,0.00022397,2]
[401438087,1768216254079,-500.0,0.00022397,2]
[401438088,1768216254088,-1300.0,0.00022397,2]
[401438089,1768216254098,-572.52030126,0.00022397,2]
[401438090,1768216254108,-500.0,0.00022397,2]
[401438091,1768216254117,-500.0,0.00022397,2]
[401438092,1768216254127,-500.0,0.00022397,2]
[401438093,1768216254136,-1300.0,0.00022397,2]
[401438094,1768216254145,-500.0,0.00022397,2]
[401438095,1768216254155,-500.0,0.00022397,2]
[401438096,1768216254164,-500.0,0.00022397,2]
[401438097,1768216254175,-1300.0,0.00022397,2]
[401438098,1768216254185,-500.0,0.00022397,2]
[401438099,1768216254195,-500.0,0.00022397,2]
[401438100,1768216254205,-600.0,0.00022397,2]
[401438101,1768216254218,-500.0,0.00022397,2]
[401438102,1768216254229,-1300.0,0.00022397,2]
[401438103,1768216254241,-500.0,0.00022397,2]
[401438104,1768216254252,-500.0,0.00022397,2]
[401438105,1768216254262,-600.0,0.00022397,2]
[401438106,1768216254271,-500.0,0.00022397,2]
[401438107,1768216254282,-1300.0,0.00022397,2]
[401438108,1768216254292,-500.0,0.00022397,2]
[401438109,1768216254302,-500.0,0.00022397,2]
[401438110,1768216254313,-600.0,0.00022397,2]
[401438111,1768216254323,-500.0,0.00022397,2]
[401438112,1768216254333,-1300.0,0.00022397,2]
[401438113,1768216254343,-500.0,0.00022397,2]
[401438114,1768216254354,-500.0,0.00022397,2]
[401438115,1768216254364,-600.0,0.00022397,2]
[401438116,1768216254375,-500.0,0.00022397,2]
[401438117,1768216254384,-1300.0,0.00022397,2]
[401438118,1768216254394,-500.0,0.00022397,2]
[401438119,1768216254405,-500.0,0.00022397,2]
[401438120,1768216254417,-600.0,0.00022397,2]
[401438121,1768216254427,-500.0,0.00022397,2]
[401438122,1768216254436,-1300.0,0.00022397,2]
[401438123,1768216254446,-500.0,0.00022397,2]
[401438124,1768216254456,-926.28318267,0.00022397,2]
[401438125,1768216254467,-600.0,0.00022397,2]
[401438126,1768216254477,-500.0,0.00022397,2]
[401438127,1768216254487,-1300.0,0.00022397,2]
[401438128,1768216254497,-500.0,0.00022397,2]
[401438129,1768216254507,-600.0,0.00022397,2]
[401438130,1768216254517,-996.78601216,0.00022397,2]
[401438131,1768216254527,-1300.0,0.00022397,2]
[401438132,1768216254536,-600.0,0.00022397,2]
[401438133,1768216254546,-500.0,0.00022397,2]
[401438134,1768216254556,-1300.0,0.00022397,2]
[401438135,1768216254566,-600.0,0.00022397,2]
[401438136,1768216254575,-500.0,0.00022397,2]
[401438137,1768216254586,-600.0,0.00022397,2]
[401438138,1768216254596,-1300.0,0.00022397,2]
[401438139,1768216254606,-500.0,0.00022397,2]
[401438140,1768216254616,-600.0,0.00022397,2]
[401438141,1768216254626,-1300.0,0.00022397,2]
[401438142,1768216254636,-500.0,0.00022397,2]
[401438143,1768216254646,-600.0,0.00022397,2]
[401438144,1768216254657,-1300.0,0.00022397,2]
[401438145,1768216254667,-873.77849901,0.00022397,2]
[401438146,1768216254677,-600.0,0.00022397,2]
[401438147,1768216254687,-1300.0,0.00022397,2]
[401438148,1768216254698,-600.0,0.00022397,2]
[401438149,1768216254708,-1300.0,0.00022397,2]
[401438150,1768216254718,-600.0,0.00022397,2]
[401438151,1768216254728,-1300.0,0.00022397,2]
[401438152,1768216254738,-600.0,0.00022397,2]
[401438153,1768216254748,-1704.12225718,0.00022397,2]
[401438154,1768216254758,-600.0,0.00022397,2]
[401438155,1768216254768,-600.0,0.00022397,2]
[401438156,1768216254778,-600.0,0.00022397,2]
[401438157,1768216254787,-600.0,0.00022397,2]
[401438158,1768216254797,-600.0,0.00022397,2]
[401438159,1768216254808,-500.0,0.00022397,2]
[401438160,1768216254818,-600.0,0.00022397,2]
[401438161,1768216254827,-951.18125993,0.00022397,2]
[401438162,1768216254837,-600.0,0.00022397,2]
[401438163,1768216254847,-600.0,0.00022397,2]
[401438164,1768216254858,-821.15916307,0.00022397,2]
[401438165,1768216254867,-661.95,0.00022458,2]
[401438166,1768216254877,-661.95,0.00022458,2]
[401438167,1768216254887,-661.95,0.00022458,2]
[401438168,1768216254897,-661.95,0.00022458,2]
[401438169,1768216254906,-661.95,0.00022458,2]
[401438170,1768216254915,-1000.0,0.00022466,2]
[401438171,1768216254925,-5000.0,0.000225,2]
[401438172,1768216254934,-200.0,0.00022523,2]
[401438173,1768216254944,-158.73335703,0.00022549,2]
[401438174,1768216254954,-1094.05759587,0.00022577,2]
[401438175,1768216254963,-7452.82106087,0.0002263,10]
[401438176,1768216254973,-1700.0,0.00022666,7]
[401438177,1768216254982,-9035.0,0.00022712,2]
[401438178,1768216254992,-1000.0,0.0002274,2]
[401438179,1768216255002,-232.6982586,0.00022799,2]
[401438180,1768216255011,-152.0,0.0002292,6]
[401438181,1768216255021,-170.01354424,0.0002292,5]
[401438182,1768216255030,-152.0,0.0002292,3]
[401438183,1768216255040,-152.0,0.0002292,5]
[401438184,1768216255049,-700.0,0.0002294,7]
[401438185,1768216255060,-500.0,0.0002294,7]
[401438186,1768216255070,-11167.99501602,0.00023,2]
[401438187,1768216255079,-10000.0,0.00023,2]
[401438188,1768216255088,-1395.97726403,0.00023,30]
[401438189,1768216255098,-400.0,0.00023,2]
[401438190,1768216255107,-1000.0,0.00023014,2]